lending/lending_fUSD_20240522
["ID","MTS","AMOUNT","RATE_DAILY","PERIOD"]
[327728020,1716388249256,-500.0,0.0002941,2]
[327728022,1716388249266,-500.0,0.0002941,2]
[327728024,1716388249275,-500.0,0.0002941,2]
[327728026,1716388249284,-500.0,0.0002941,2]
[327728028,1716388249293,-500.0,0.0002941,2]
[327728030,1716388249303,-534.98,0.0002941,2]
[327728032,1716388249312,-500.0,0.0002941,2]
[327728034,1716388249322,-500.0,0.0002941,2]
[327728036,1716388249331,-500.0,0.0002941,2]
[327728038,1716388249341,-500.0,0.0002941,2]
[327728040,1716388249351,-545.46,0.0002941,2]
[327728042,1716388249361,-500.0,0.0002941,2]
[327728044,1716388249371,-500.0,0.0002941,2]
[327728046,1716388249380,-500.0,0.0002941,2]
[327728048,1716388249389,-500.0,0.0002941,2]
[327728050,1716388249399,-257.11879413,0.0002941,2]
[327728052,1716388249409,-1043.83643081,0.0002941,2]
[327728054,1716388249419,-1039.40241281,0.0002941,2]
[327728056,1716388249434,-37481.60438299,0.0002941,2]
[327728058,1716388249446,-445.41817332,0.0002941,2]
[327728060,1716388249456,-2000.0,0.0002941,2]
[327728062,1716388249466,-200.0,0.0002941,2]
[327728064,1716388249476,-2000.0,0.0002941,2]
[327728066,1716388249487,-200.0,0.0002941,2]
[327728068,1716388249498,-828.10464,0.0002941,2]
[327728070,1716388249507,-150.0,0.00029422,2]
[327728072,1716388249517,-150.0,0.00029445,2]
[327728074,1716388249527,-150.0,0.00029453,2]
[327728076,1716388249537,-1500.0,0.00029465,2]
[327728078,1716388249546,-1500.0,0.00029479,2]
[327728080,1716388249556,-150.0,0.00029495,2]
[327728082,1716388249566,-150.0,0.00029497,2]
[327728099,1716388249718,-214.47676037,0.000295,3]
[327728101,1716388249728,-223.0,0.000295,2]
[327728103,1716388249738,-675.00666,0.000295,10]
[327728106,1716388249748,-353.0,0.000295,2]
[327728108,1716388249758,-1000.0,0.000295,2]
[327728110,1716388249768,-150.0,0.000296,2]
[327728112,1716388249777,-150.0,0.00029626,2]
[327728114,1716388249787,-151.44,0.00029654,2]
[327728116,1716388249796,-165.72518546,0.00029661,2]
[327728117,1716388249806,-150.0,0.00029671,2]
[327728119,1716388249815,-25944.94365051,0.00029672,11]
[327728122,1716388249830,-11749.86364172,0.00029672,11]
[327728135,1716388249953,-176.68023054,0.00024998,2]
[327728137,1716388249961,-250.0,0.00026511,2]
[327728139,1716388249971,-159.11310599,0.00029672,11]
[327728142,1716388249984,-458.11552598,0.00029672,11]
[327728144,1716388249995,-576.72697962,0.00029672,11]
[327728146,1716388250009,-1393.13859836,0.00029672,11]
[327728148,1716388250020,-349.00242578,0.00029672,11]
[327728150,1716388250032,-553.56974129,0.00029672,11]
[327728153,1716388250046,-434.9852885,0.00029672,11]
[327728155,1716388250058,-17011.5830724,0.00029672,11]
[327728157,1716388250071,-3323.00748072,0.00029672,11]
[327728159,1716388250083,-4247.25,0.00029672,11]
[327728161,1716388250096,-577.02751537,0.00029672,11]
[327728164,1716388250107,-2303.75270085,0.00029672,11]
[327728166,1716388250118,-37250.0,0.00029672,11]
[327728168,1716388250130,-443.63479367,0.00029672,11]
[327728252,1716388261444,155.56883352,0.00013973,2]
[327728253,1716388292071,155.0,0.00013833,2]
[327728254,1716388307942,1039.40241281,0.00014,2]
[327728256,1716388327909,1039.40241281,0.00014,2]
[327728257,1716388343915,1039.40241281,0.00014,2]
[327728260,1716388363204,1039.40241281,0.00014,2]
[327728263,1716388383917,1039.40241281,0.00014,2]
[327728264,1716388384062,229.6,0.00025724,120]
[327728265,1716388384414,229.6,0.0002894,120]
[327728267,1716388387659,200.59,0.00013973,2]
[327728270,1716388401960,1039.40241281,0.00014,2]
[327728273,1716388419933,736.43109463,0.00014,2]
[327728274,1716388423936,85537.2952244,0.00013,2]
[327728275,1716388423971,9800.0,0.00013,2]
[327728276,1716388424002,9800.0,0.00013,2]
[327728280,1716389191086,900.0,0.00032,120]
[327728281,1716389221372,300.0,0.000126,4]
[327728282,1716389223524,700.0,0.000127,4]
[327728283,1716389225623,1100.0,0.000128,4]
[327728284,1716389227754,1400.0,0.000129,4]
[327728390,1716389432713,-402.51276888,0.00012618,2]
[327728391,1716389432723,-803.94291113,0.00012619,2]
[327728392,1716389432732,-505.28772991,0.0001262,2]
[327728393,1716389432742,-382.69,0.00012628,2]
[327728394,1716389432752,-150.0,0.00012877,2]
[327728395,1716389432762,-150.0,0.00012899,2]
[327728396,1716389432774,-172.96240639,0.000129,2]
[327728397,1716389432784,-161.20225714,0.000129,2]
[327728398,1716389432798,-4604.32196522,0.000129,2]
[327728399,1716389432807,-172.78717873,0.000129,2]
[327728400,1716389432817,-312.86153032,0.000129,2]
[327728401,1716389432827,-358.15958458,0.000129,2]
[327728402,1716389432836,-151.58,0.0001299,2]
[327728403,1716389432846,-151.58,0.0001299,2]
[327728404,1716389432855,-151.58,0.0001299,2]
[327728405,1716389432868,-151.58,0.0001299,2]
[327728406,1716389432879,-166.15748898,0.0001299,2]
[327728407,1716389432889,-326.03857362,0.00012996,2]
[327728408,1716389432899,-698.49,0.00012998,2]
[327728409,1716389432909,-512.83203378,0.00012998,2]
[327728410,1716389432918,-173.49313269,0.00012999,2]
[327728411,1716389432928,-499.99,0.00012999,2]
[327728412,1716389432941,-1927.64354349,0.00012999,2]
[327728413,1716389432951,-10958.19097387,0.00013,2]
[327728414,1716389432965,-1054.71998718,0.00013,2]
[327728415,1716389432976,-7708.80476078,0.00013,2]
[327728416,1716389432988,-11320.92314578,0.00013,2]
[327728417,1716389433000,-550.67700589,0.00013,2]
[327728418,1716389433012,-616.59989011,0.00013,2]
[327728419,1716389433023,-599.46000008,0.00013,2]
[327728420,1716389433035,-5669.67267634,0.00013,2]
[327728421,1716389433047,-504.84,0.00013,2]
[327728422,1716389433059,-562.15993343,0.00013,2]
[327728423,1716389433070,-283.87982098,0.00013,2]
[327728424,1716389434644,-197.87473694,0.000129,2]
[327728427,1716389434654,-826.5616516,0.00013,2]
[327728429,1716389434666,-23022.37049775,0.00013,2]
[327728431,1716389434680,-1037.91098845,0.00013,2]
[327728449,1716389435201,-360698.72178968,0.00013,2]
[327728450,1716389439807,-427.20419193,0.00013,2]
[327728453,1716389439822,-544.49802541,0.00013,2]
[327728455,1716389439835,-1753621.65364722,0.00013,2]
[327728457,1716389439845,-346.28428884,0.00013,2]
[327728458,1716389439858,-155.0,0.00013,2]
[327728459,1716389439867,-1065536.16024072,0.00013,2]
[327728460,1716389439877,-13226.26588799,0.00013,2]
[327728461,1716389439887,-500.0,0.00013948,2]
[327728462,1716389439897,-257.81,0.00013973,2]
[327728463,1716389439907,-1039.40241281,0.00014,2]
[327728464,1716389439918,-1500.0,0.00014079,2]
[327728465,1716389439928,-210.0,0.00014189,2]
[327728466,1716389439938,-198.4,0.00014276,2]
[327728467,1716389439952,-3375.23,0.00014561,2]
[327728468,1716389439965,-312.86153027,0.0001463,2]
[327728469,1716389439975,-843.95,0.00014732,2]
[327728470,1716389439985,-382.69,0.00014892,2]
[327728471,1716389439996,-4604.32196514,0.00014945,2]
[327728472,1716389440006,-200.0,0.00015,2]
[327728473,1716389440016,-619.02429447,0.00015,2]
[327728474,1716389440026,-8092.39759761,0.00015,2]
[327728475,1716389440036,-155.0,0.00015,2]
[327728476,1716389440057,-155.0,0.00015,2]
[327728477,1716389440074,-454.46694579,0.00015,2]
[327728478,1716389440094,-300.0,0.00015368,2]
[327728479,1716389440112,-293.0,0.00015608,2]
[327728480,1716389440135,-171.94,0.00015638,2]
[327728481,1716389440154,-198.4,0.0001606,2]
[327728482,1716389440174,-9999.99,0.00016116,2]
[327728483,1716389440190,-312.86153027,0.00016361,2]
[327728484,1716389440208,-250.0,0.00016449,2]
[327728485,1716389440226,-171.94,0.00016467,2]
[327728486,1716389440248,-2751.0,0.00016487,2]
[327728487,1716389440264,-200.0,0.00016552,2]
[327728488,1716389440279,-627.99,0.00016592,2]
[327728489,1716389440297,-250.0,0.00016608,2]
[327728490,1716389440312,-179.52,0.00016712,2]
[327728492,1716389440331,-23900.0,0.00016738,2]
[327728494,1716389440345,-300.0,0.00016738,2]
[327728497,1716389440368,-754.0,0.000169,2]
[327728500,1716389440385,-3178.0,0.000169,2]
[327728503,1716389440403,-4604.32196514,0.0001699,2]
[327728505,1716389440419,-2424.98634334,0.00017,2]
[327728506,1716389440435,-168.45,0.00017012,2]
[327728507,1716389440454,-171.33,0.00017015,2]
[327728508,1716389440471,-801.6,0.00017095,2]
[327728509,1716389440487,-382.69,0.00017156,2]
[327728510,1716389440503,-328.0,0.00017169,2]
[327728511,1716389440519,-3738.1,0.00017225,2]
[327728512,1716389440535,-171.94,0.00017297,2]
[327728513,1716389440551,-3375.23,0.00017301,2]
[327728514,1716389440568,-171.33,0.00017717,2]
[327728515,1716389440585,-5719.82,0.00017728,2]
[327728516,1716389440601,-859.34,0.00017728,2]
[327728517,1716389440618,-22945.08,0.00017728,2]
[327728518,1716389440634,-782.34,0.00017728,2]
[327728519,1716389440649,-198.4,0.00017845,2]
[327728520,1716389440665,-1555.7019619,0.00018,2]
[327728521,1716389440681,-155.0,0.00018,2]
[327728522,1716389440702,-1109.20164795,0.00018,2]
[327728523,1716389440718,-312.86153027,0.00018091,2]
[327728524,1716389440734,-1659.29372982,0.000181,2]
[327728525,1716389440750,-171.94,0.00018126,2]
[327728526,1716389440768,-171.33,0.00018419,2]
[327728527,1716389440786,-151.0,0.00018615,3]
[327728528,1716389440803,-151.0,0.00018615,2]
[327728529,1716389440819,-536.62,0.00018654,2]
[327728530,1716389440835,-536.62,0.00018659,2]
[327728532,1716389440851,-536.62,0.00018664,2]
[327728533,1716389440866,-536.62,0.00018669,2]
[327728534,1716389440883,-536.62,0.00018673,2]
[327728535,1716389440898,-536.62,0.00018678,2]
[327728536,1716389440913,-536.62,0.00018683,2]
[327728537,1716389440929,-536.62,0.00018688,2]
[327728538,1716389440945,-536.62,0.00018693,2]
[327728539,1716389440960,-536.62,0.00018698,2]
[327728540,1716389440976,-536.62,0.00018703,2]
[327728541,1716389440991,-536.62,0.00018708,2]
[327728542,1716389441008,-536.62,0.00018713,2]
[327728543,1716389441023,-536.62,0.00018718,2]
[327728544,1716389441039,-536.62,0.00018722,2]
[327728545,1716389441068,-536.62,0.00018727,2]
[327728546,1716389441095,-536.62,0.00018732,2]
[327728547,1716389441117,-536.62,0.00018737,2]
[327728548,1716389441139,-536.62,0.00018742,2]
[327728549,1716389441161,-536.62,0.00018747,2]
[327728550,1716389441182,-171.94,0.00018956,2]
[327728551,1716389441197,-410.39631753,0.00019,2]
[327728552,1716389441386,-1615.0510207,0.00019,2]
[327728553,1716389441419,-1034.47089833,0.00019,2]
[327728554,1716389441428,-4604.32196514,0.00019036,2]
[327728555,1716389441438,-171.33,0.00019121,2]
[327728556,1716389441450,-172.78717872,0.0001916,2]
[327728557,1716389441460,-184.08530355,0.00019178,2]
[327728558,1716389441470,-503.79045459,0.00019178,2]
[327728559,1716389441480,-500.0,0.00019178,2]
[327728560,1716389441490,-568.15446854,0.00019178,2]
[327728561,1716389441499,-500.0,0.00019178,2]
[327728562,1716389441509,-500.0,0.00019178,2]
[327728563,1716389441518,-500.0,0.00019178,2]
[327728564,1716389441528,-500.0,0.00019178,2]
[327728565,1716389441538,-500.0,0.00019178,2]
[327728566,1716389441547,-5003.2,0.00019178,2]
[327728567,1716389441557,-3881.14394197,0.000192,2]
[327728568,1716389441567,-7753.23756689,0.000192,2]
[327728569,1716389441576,-833.42,0.000192,2]
[327728570,1716389441586,-748.81,0.000192,2]
[327728571,1716389441595,-801.6,0.00019232,2]
[327728572,1716389441605,-382.69,0.0001942,2]
[327728573,1716389441615,-198.4,0.00019629,2]
[327728574,1716389441625,-151.0,0.00019687,2]
[327728575,1716389441634,-312.86153027,0.00019822,2]
[327728576,1716389441644,-171.33,0.00019823,2]
[327728577,1716389441653,-32772.58117485,0.000199,3]
[327728578,1716389441663,-547.45858614,0.0002,2]
[327728579,1716389441673,-862.31038971,0.0002,2]
[327728580,1716389441684,-5186.20094472,0.0002,2]
[327728581,1716389441696,-6239.63008206,0.0002,2]
[327728582,1716389441706,-627.95805638,0.0002,2]
[327728583,1716389441715,-155.0,0.0002,2]
[327728584,1716389441725,-155.0,0.0002,2]
[327728585,1716389441735,-4802.19535607,0.0002,4]
[327728586,1716389441746,-3375.23,0.0002004,2]
[327728587,1716389441756,-200.59,0.00020447,2]
[327728588,1716389441766,-257.81,0.00020447,2]
[327728589,1716389441779,-843.95,0.00020625,2]
[327728590,1716389441788,-151.0,0.0002076,3]
[327728591,1716389441798,-717.9371715,0.00021,2]
[327728592,1716389441807,-1000.0,0.00021041,2]
[327728593,1716389441818,-4604.32196514,0.00021081,2]
[327728594,1716389441827,-801.6,0.00021369,2]
[327728595,1716389441837,-756.4,0.0002137,2]
[327728596,1716389441846,-479.55,0.0002137,2]
[327728597,1716389441856,-198.4,0.00021414,2]
[327728598,1716389441867,-312.86153027,0.00021552,2]
[327728599,1716389441877,-382.69,0.00021683,2]
[327728600,1716389441886,-748.81,0.000217,2]
[327728601,1716389441896,-800.0,0.00021726,2]
[327728602,1716389441906,-167.0,0.00021741,2]
[327728603,1716389441915,-833.42,0.000218,2]
[327728604,1716389441924,-500.0,0.000219,2]
[327728605,1716389441934,-200.57,0.00021918,2]
[327728606,1716389441947,-166.21,0.00021918,2]
[327728607,1716389441956,-163.86,0.00021918,2]
[327728608,1716389441966,-787.61802861,0.00022,2]
[327728609,1716389441975,-318.0,0.00022,2]
[327728610,1716389441985,-170.85,0.00022358,2]
[327728611,1716389441995,-154.9442931,0.0002238,2]
[327728612,1716389442006,-155.99574069,0.00022399,2]
[327728613,1716389442015,-167.0,0.00022459,2]
[327728614,1716389442024,-10640.10339988,0.000225,2]
[327728615,1716389442034,-155.3673109,0.00022527,2]
[327728616,1716389442044,-10000.0,0.00022552,2]
[327728617,1716389442054,-154.9442931,0.00022615,2]
[327728618,1716389442063,-163.34464205,0.00022657,2]
[327728619,1716389442073,-163.34464205,0.00022686,2]
[327728620,1716389442082,-155.99574069,0.00022739,2]
[327728621,1716389442091,-5511.49091993,0.00023,2]
[327728622,1716389442100,-750.0,0.00023,2]
[327728623,1716389442110,-4604.32196514,0.00023126,2]
[327728624,1716389442119,-167.0,0.00023176,2]
[327728625,1716389442129,-300.227,0.00023251,2]
[327728626,1716389442138,-2100.0,0.00023251,2]
[327728627,1716389442147,-220.35923403,0.00023255,2]
[327728628,1716389442156,-312.86153027,0.00023283,2]
[327728629,1716389442166,-163.97443191,0.00023316,2]
[327728630,1716389442176,-154.9442931,0.0002333,2]
[327728631,1716389442185,-2004.82313321,0.000234,2]
[327728632,1716389442196,-833.42,0.000234,2]
[327728633,1716389442205,-748.81,0.000234,2]
[327728634,1716389442215,-1200.58933735,0.00023457,2]
[327728635,1716389442225,-801.6,0.00023506,2]
[327728636,1716389442235,-156.52590867,0.00023599,10]
[327728637,1716389442246,-335304.0,0.000236,2]
[327728638,1716389442255,-358.15958456,0.00023689,2]
[327728639,1716389442265,-167.0,0.00023894,2]
[327728640,1716389442274,-1800.0,0.000239,8]
[327728641,1716389442284,-382.69,0.00023947,2]
[327728642,1716389442295,-472.37732213,0.00024,2]
[327728643,1716389442304,-12095.73573067,0.00024,3]
[327728644,1716389442314,-163.34464205,0.00024019,2]
[327728645,1716389442324,-171.00218218,0.00024049,2]
[327728646,1716389442334,-155.99574069,0.00024052,2]
[327728647,1716389442343,-1035.93410141,0.000241,2]
[327728648,1716389442353,-155.99574069,0.00024167,2]
[327728649,1716389442363,-154.07988147,0.00024179,2]
[327728650,1716389442372,-394.7284582,0.0002421,2]
[327728651,1716389442382,-155.9107649,0.00024236,2]
[327728652,1716389442391,-1005.50686562,0.00024277,2]
[327728653,1716389442400,-2161.0,0.00024277,2]
[327728654,1716389442411,-974.0,0.00024277,2]
[327728655,1716389442421,-639.439,0.00024277,2]
[327728656,1716389442431,-1225.0,0.00024277,2]
[327728657,1716389442442,-1643.0,0.00024277,2]
[327728658,1716389442453,-1263.0,0.00024277,2]
[327728659,1716389442463,-552.857,0.00024277,2]
[327728660,1716389442473,-439.0,0.00024277,2]
[327728661,1716389442483,-809.0,0.00024277,2]
[327728662,1716389442492,-217.0,0.00024277,2]
[327728663,1716389442502,-1659.459,0.00024277,2]
[327728664,1716389442511,-2395.0,0.00024277,2]
[327728665,1716389442521,-3180.295,0.00024277,2]
[327728666,1716389442531,-1138.278,0.00024277,2]
[327728667,1716389442544,-289.0,0.00024277,2]
[327728668,1716389442555,-4303.759,0.00024277,2]
[327728669,1716389442564,-3526.798,0.00024277,2]
[327728670,1716389442574,-1061.0,0.00024277,2]
[327728671,1716389442583,-163.114,0.00024277,2]
[327728672,1716389442593,-179.0,0.00024277,2]
[327728673,1716389442603,-163.34464205,0.00024527,2]
[327728674,1716389442612,-167.0,0.00024612,2]
[327728675,1716389442622,-155.9107649,0.00024644,2]
[327728676,1716389442632,-250.0,0.00024658,2]
[327728677,1716389442641,-154.9442931,0.0002474,2]
[327728678,1716389442651,-151.58,0.00024888,2]
[327728679,1716389442660,-151.58,0.00024888,2]
[327728680,1716389442670,-1295.37495419,0.00024889,2]
[327728681,1716389442679,-1295.37495419,0.00024889,2]
[327728682,1716389442689,-1295.37495419,0.00024889,2]
[327728683,1716389442701,-1295.37495419,0.00024889,2]
[327728684,1716389442710,-1295.37495419,0.00024889,2]
[327728685,1716389442720,-150.0,0.00024897,2]
[327728686,1716389442729,-150.0,0.00024897,2]
[327728687,1716389442739,-151.713945,0.00024898,7]
[327728688,1716389442748,-151.0,0.00024898,7]
[327728689,1716389442758,-221.590294,0.00024898,7]
[327728690,1716389442767,-221.590294,0.00024898,7]
[327728691,1716389442778,-151.0,0.00024898,7]
[327728692,1716389442791,-322.295036,0.00024898,7]
[327728693,1716389442800,-155.757241,0.00024898,7]
[327728694,1716389442809,-151.0,0.00024898,7]
[327728695,1716389442819,-322.295036,0.00024898,7]
[327728696,1716389442830,-1329.967815,0.00024898,7]
[327728697,1716389442839,-1329.967815,0.00024898,7]
[327728698,1716389442849,-6068.73241079,0.00024898,2]
[327728699,1716389442860,-169.57106,0.00024898,7]
[327728700,1716389442870,-6068.73241077,0.00024898,2]
[327728701,1716389442880,-6068.73241077,0.00024898,2]
[327728702,1716389442889,-6068.73241077,0.00024898,2]
[327728703,1716389442898,-6068.73241077,0.00024898,2]
[327728704,1716389442908,-6068.73241077,0.00024898,2]
[327728705,1716389442918,-5000.0,0.000249,4]
[327728706,1716389442928,-172.55608156,0.000249,2]
[327728707,1716389442937,-5000.0,0.000249,4]
[327728708,1716389442949,-300.0,0.000249,9]
[327728709,1716389442959,-1000.0,0.000249,2]
[327728710,1716389442969,-151.58,0.0002499,2]
[327728711,1716389442978,-151.58,0.0002499,2]
[327728712,1716389442988,-151.58,0.0002499,2]
[327728713,1716389442998,-3284.46230029,0.00024996,2]
[327728714,1716389443008,-297.83725987,0.00024997,2]
[327728715,1716389443018,-467.22872884,0.00024997,2]
[327728716,1716389443028,-1380.31169947,0.00024998,2]
[327728717,1716389443038,-150.0,0.00024999,2]
[327728718,1716389443048,-226532.757841,0.00025,11]
[327728719,1716389443064,-592578.16892733,0.00025,11]
[327728725,1716389443756,-806.41578749,0.00025,11]
[327728726,1716389443768,-10464.38705075,0.00025,11]
[327728727,1716389443784,-2022.7165844,0.00025,11]
[327728728,1716389443795,-670.05574998,0.00025,11]
[327728730,1716389443807,-1472.8221161,0.00025,11]
[327728731,1716389443819,-348.21089606,0.00025,11]
[327728732,1716389443831,-2470.43890567,0.00025,11]
[327728733,1716389443842,-715.5495421,0.00025,11]
[327728734,1716389443853,-383.65,0.00025,11]
[327728735,1716389443872,-261.9,0.00025,11]
[327728736,1716389443884,-849.33,0.00025,11]
[327728737,1716389443898,-325.82,0.00025,11]
[327728738,1716389443910,-194411.08444103,0.00025,11]
[327728739,1716389443920,-616.15117642,0.00025,2]
[327728740,1716389443930,-224.2998362,0.00025,2]
[327728741,1716389443939,-719691.32627306,0.00025,2]
[327728742,1716389443953,-6512.96046108,0.00025,2]
[327728743,1716389443965,-32828.84318316,0.00025,2]
[327728744,1716389444027,-453.5319151,0.00025,2]
[327728745,1716389444513,-168.45728757,0.00019178,2]
[327728746,1716389444524,-2853.88592475,0.00025,2]
[327728747,1716389444537,-372712.63359454,0.00025,2]
[327728748,1716389444550,-500.0,0.00025,2]
[327728749,1716389444563,-1568.15728654,0.00025,2]
[327728750,1716389444577,-762.5,0.00025,2]
[327728754,1716389446549,-372.25,0.00017259,2]
[327728756,1716389446561,-133.03772991,0.00017259,2]
[327728758,1716389446571,-151.0,0.00024898,7]
[327728760,1716389446580,-39252.99502339,0.00025,2]
[327728764,1716389446993,-670.85,0.00025,2]
[327729479,1716389971670,349.28,0.00027152,120]
[327729480,1716389972041,349.28,0.00029868,120]
[327729519,1716390632142,-529.39391073,0.00012861,2]
[327729520,1716390632158,-505.28772991,0.00012862,2]
[327729521,1716390632176,-176.68023054,0.00012866,2]
[327729522,1716390632191,-183.96961228,0.00012867,2]
[327729523,1716390632216,-462.54818119,0.00012867,2]
[327729525,1716390632231,-453.34624159,0.00012868,2]
[327729526,1716390632246,-148.82341673,0.00012868,2]
[327729527,1716390632265,-304.52282486,0.00012868,2]
[327729528,1716390632280,-293.58768482,0.00012868,2]
[327729529,1716390632298,-159.75855677,0.00012868,2]
[327729530,1716390632313,-453.34624159,0.00012868,2]
[327729531,1716390632327,-453.34624159,0.00012868,2]
[327729532,1716390632342,-453.34624159,0.00012868,2]
[327729533,1716390632357,-156.06,0.00013973,2]
[327729534,1716390632373,-179.53,0.00016712,2]
[327729535,1716390632391,-281.24382173,0.00017259,2]
[327729536,1716390632400,-148.65105722,0.00017719,2]
[327729537,1716390632415,-525.15398378,0.00017719,2]
[327729538,1716390632426,-299.99,0.00017808,4]
[327729539,1716390632623,-479.10154799,0.00018591,2]
[327729540,1716390634785,-7899.12845201,0.00018591,2]
[327729541,1716390634796,-155.63384141,0.00018998,2]
[327729542,1716390634805,-499.99,0.00018999,2]
[327729543,1716390634816,-2038.84674584,0.00019,2]
[327729544,1716390634829,-10996.77014736,0.00019,2]
[327729545,1716390635214,-584.49,0.00019,2]
[327729546,1716390637792,-1717.15506327,0.00019,2]
[327729549,1716390637802,-410.39631753,0.00019,2]
[327729550,1716390637812,-291.71,0.00019362,2]
[327729551,1716390637822,-155.13197663,0.0002,2]
[327729552,1716390637832,-792.35169027,0.0002,2]
[327729553,1716390637841,-1850.60933843,0.0002,2]
[327729554,1716390637854,-4389.02074363,0.0002,2]
[327729555,1716390637864,-3586.12964076,0.0002,2]
[327729556,1716390637876,-1600.07130396,0.0002,2]
[327729557,1716390637886,-150.0,0.00021,2]
[327729558,1716390637896,-717.9371715,0.00021,2]
[327729559,1716390637905,-23900.0,0.00021238,2]
[327729560,1716390637915,-758.18,0.00021238,2]
[327729561,1716390637925,-203.54,0.00021275,3]
[327729562,1716390637935,-250.0,0.00021313,2]
[327729563,1716390637947,-250.0,0.00021326,2]
[327729564,1716390637957,-187.9,0.00021381,2]
[327729565,1716390637968,-9601.51466899,0.00021568,2]
[327729566,1716390637978,-8845.75,0.00021578,2]
[327729567,1716390637987,-291.71,0.00021626,2]
[327729568,1716390637996,-200.0,0.00021673,2]
[327729569,1716390638005,-349.28,0.00021722,2]
[327729570,1716390638015,-249.77430605,0.00021776,2]
[327729571,1716390638024,-627.95805638,0.00021853,2]
[327729572,1716390638033,-1000.0,0.00021855,2]
[327729573,1716390638043,-958.26,0.00021918,2]
[327729574,1716390638052,-156.8025776,0.00022077,2]
[327729575,1716390638062,-156.04881086,0.00022446,2]
[327729576,1716390638072,-161.01,0.00022466,2]
[327729577,1716390638082,-161.01,0.00022484,2]
[327729578,1716390638091,-161.01,0.00022503,2]
[327729579,1716390638101,-161.01,0.00022522,2]
[327729580,1716390638111,-161.01,0.00022541,2]
[327729581,1716390638120,-161.01,0.00022559,2]
[327729582,1716390638130,-161.01,0.00022578,2]
[327729583,1716390638139,-150.49,0.00022741,2]
[327729584,1716390638149,-180.86971893,0.00022981,6]
[327729585,1716390638158,-167.69835563,0.00023238,2]
[327729586,1716390638168,-154.49054119,0.00023364,2]
[327729587,1716390638180,-1298.39020343,0.00023421,2]
[327729588,1716390638190,-156.8025776,0.00023866,2]
[327729589,1716390638201,-291.71,0.0002389,2]
[327729590,1716390638215,-167.69835564,0.00023896,2]
[327729591,1716390638224,-154.94429311,0.00023988,2]
[327729592,1716390638234,-472.37732213,0.00024,2]
[327729593,1716390638243,-154.07988148,0.00024028,2]
[327729594,1716390638253,-150.49,0.0002411,2]
[327729595,1716390638264,-187.9,0.00024121,2]
[327729596,1716390638273,-154.94429311,0.00024135,2]
[327729597,1716390638284,-180.0,0.0002423,2]
[327729598,1716390638294,-228.014,0.00024277,2]
[327729599,1716390638304,-150.157,0.00024277,2]
[327729600,1716390638313,-2161.0,0.00024277,2]
[327729601,1716390638322,-1643.0,0.00024277,2]
[327729602,1716390638332,-1225.0,0.00024277,2]
[327729603,1716390638342,-445.0,0.00024277,2]
[327729604,1716390638351,-196.0,0.00024277,2]
[327729605,1716390638360,-215.0,0.00024277,2]
[327729606,1716390638370,-1649.0,0.00024277,2]
[327729607,1716390638381,-289.0,0.00024277,2]
[327729608,1716390638392,-1061.0,0.00024277,2]
[327729609,1716390638401,-349.28,0.00024437,2]
[327729610,1716390638411,-163.34464206,0.00024574,2]
[327729611,1716390638420,-1000.0,0.00024586,2]
[327729612,1716390638430,-163.34464206,0.00024616,2]
[327729613,1716390638439,-151.71322323,0.00024639,2]
[327729614,1716390638451,-155.0,0.00024653,2]